bitfinex/quotes_SOLUSD_20240905
["timestamp","ask_amount","ask_price","bid_price","bid_amount"]
[1725565578851,1.34507264,128.9,128.87,45.6665744]
[1725565579157,9.10307264,128.9,128.87,45.0]
[1725565580131,20.0,128.89,128.87,45.0]
[1725565581857,1.34507264,128.9,128.87,65.06520694]
[1725565582058,1.34507264,128.9,128.89,7.7585]
[1725565582371,0.8369896,128.93,128.9,7.7578]
[1725565582672,0.8369896,128.93,128.91,45.66487874]
[1725565583537,8.5931896,128.93,128.91,45.0]
[1725565583839,0.8369896,128.93,128.9,45.0]
[1725565584164,8.5934896,128.93,128.9,45.0]
[1725565584456,0.8369896,128.93,128.91,16.4329]
[1725565584638,0.8369896,128.93,128.92,52.7567]
[1725565584833,7.7535,128.98,128.92,58.758]
[1725565585057,7.7527,128.99,128.95,7.7548]
[1725565585251,7.7527,128.99,128.96,45.66305709]
[1725565585551,9.09491835,128.99,128.96,45.0]
[1725565585758,7.7532,128.98,128.96,45.0]
[1725565586065,1.34221835,128.99,128.95,45.0]
[1725565586231,1.34221835,128.99,128.96,7.7539]
[1725565586432,1.34221835,128.99,128.97,45.0]
[1725565586853,1.34221835,128.99,128.97,45.66275657]
[1725565587263,1.34221835,128.99,128.97,52.7531]
[1725565587959,1.34221835,128.99,128.98,15.3844]
[1725565588132,1.34221835,128.99,128.98,60.3844]
[1725565588457,1.34221835,128.99,128.95,7.7549]
[1725565588633,1.34221835,128.99,128.96,45.0]
[1725565588830,9.09471835,128.99,128.96,45.0]
[1725565589028,9.09471835,128.99,128.95,45.0]
[1725565589443,1.34221835,128.99,128.95,52.7546]
[1725565589901,1.34221835,128.99,128.96,8.41682333]
[1725565590055,1.34221835,128.99,128.97,52.7536]
[1725565590357,1.34221835,128.99,128.98,45.0]
[1725565590565,1.34221835,128.99,128.98,53.41552238]
[1725565590936,7.7495,129.04,128.98,53.41552238]
[1725565591131,7.7495,129.04,128.99,0.66156832]
[1725565591330,7.7495,129.04,128.99,8.41406832]
[1725565591635,7.7501,129.03,129.0,45.0]
[1725565591836,7.7507,129.02,128.98,45.0]
[1725565592067,7.7513,129.01,128.98,45.0]
[1725565592371,7.7502,129.03,128.99,0.66212157]
[1725565592572,27.7508,129.02,128.98,52.7531]
[1725565592853,27.7508,129.02,128.99,0.66210272]
[1725565593065,20.0,129.02,128.99,0.66210272]
[1725565593736,27.7508,129.02,128.98,45.0]
[1725565593937,1.93766417,129.01,128.94,15.3844]
[1725565594371,21.93793385,129.02,128.94,15.3844]
[1725565594743,1.93795859,129.01,128.95,7.7547]
[1725565594945,7.7518,129.01,128.97,7.7535]
[1725565595152,20.0,129.02,128.98,0.66249957]
[1725565595153,27.7509,129.02,128.98,0.66249957]
[1725565595467,7.7509,129.02,128.98,0.66249957]
[1725565595672,7.7509,129.02,128.98,7.753]
[1725565595843,7.7502,129.03,128.99,0.66185897]
[1725565596165,1.9378251,129.05,128.99,45.0]
[1725565596476,7.7517,129.01,128.99,45.0]
[1725565596643,7.7519,129.0,128.99,45.0]
[1725565596845,27.7519,129.0,128.99,45.0]
[1725565597163,19.3728,129.05,128.99,45.0]
[1725565597164,7.7495,129.05,128.99,45.0]
[1725565597387,0.8369896,129.06,129.0,0.66119691]
[1725565597569,8.5856896,129.06,129.01,27.1286]
[1725565597867,8.5856896,129.06,129.02,45.0]
[1725565597868,7.7489,129.05,129.02,45.0]
[1725565598079,7.7502,129.03,128.98,6.5832]
[1725565598244,7.7502,129.03,128.99,45.0]
[1725565598440,1.34394153,129.02,128.99,45.0]
[1725565598661,7.7519,129.0,128.99,45.0]
[1725565598866,1.34394153,129.02,128.99,45.0]
[1725565599261,9.09504153,129.02,128.99,45.0]
[1725565599758,20.0,129.01,128.99,45.0]
[1725565600745,1.34394153,129.02,129.0,0.66214661]
[1725565600946,1.34394153,129.02,129.01,7.7513]
[1725565601167,7.749,129.05,129.01,52.7513]
[1725565601367,7.749,129.05,129.02,45.66101349]
[1725565601552,8.5852896,129.06,129.02,45.66101349]
[1725565601744,1.34244487,129.04,129.02,45.0]
[1725565601946,9.09214487,129.04,129.02,45.0]
[1725565602156,9.09214487,129.04,128.98,6.5832]
[1725565602157,1.93743931,129.03,128.98,6.5832]
[1725565602361,7.7525,128.99,128.98,6.5832]
[1725565602576,7.7525,128.99,128.95,33.3955]
[1725565602771,21.31323931,129.03,128.95,33.3955]
[1725565602772,7.752,129.0,128.95,33.3955]
[1725565602960,7.752,129.0,128.96,7.7541]
[1725565603158,7.7515,129.01,128.97,7.7535]
[1725565603363,1.34244487,129.04,128.95,25.6406]
[1725565603364,27.7521,129.0,128.98,0.66208678]
[1725565603660,27.7521,129.0,128.95,33.3949]
[1725565603975,7.7525,128.99,128.95,25.6406]
[1725565604274,27.7521,129.0,128.96,8.41678379]
[1725565604452,20.0,129.0,128.97,7.7534]
[1725565604649,7.7509,129.02,128.98,8.41540118]
[1725565605149,9.09234487,129.04,129.0,7.7518]
[1725565605367,9.09234487,129.04,129.01,45.66119226]
[1725565605572,1.34244487,129.04,129.02,0.66125337]
[1725565605774,7.7491,129.05,129.02,0.66125337]
[1725565605948,8.5852896,129.06,129.02,8.41175337]
[1725565606160,8.5852896,129.06,129.03,45.0]
[1725565606359,8.5852896,129.06,129.04,0.66048769]
[1725565607060,0.8369896,129.06,129.04,0.66048769]
[1725565607249,0.8369896,129.06,129.04,7.7494]
[1725565607571,0.8369896,129.06,129.05,45.0]
[1725565608557,0.8369896,129.06,129.05,7.7489]
[1725565608770,0.8369896,129.06,129.05,52.7489]
[1725565609759,0.8369896,129.06,129.05,91.4935]
[1725565610064,0.8369896,129.06,129.04,7.7494]
[1725565610474,0.8369896,129.06,129.05,7.7489]
[1725565611164,0.8369896,129.06,129.05,57.7489]
[1725565611653,0.8369896,129.06,129.05,102.7489]
[1725565612278,1.93601014,129.17,129.08,16.4888]
[1725565612477,1.93601014,129.17,129.11,7.7453]
[1725565612478,7.7428,129.16,129.11,7.7453]
[1725565612987,1.34217929,129.16,129.12,45.0]
[1725565613283,1.93577797,129.18,129.09,6.0843]
[1725565613284,1.93578013,129.15,129.09,6.0843]
[1725565613463,1.93611271,129.14,129.06,6.0843]
[1725565613663,7.7453,129.11,129.06,6.0843]
[1725565614179,7.7453,129.11,129.06,13.8325]
[1725565614780,20.0,129.1,129.06,13.8325]
[1725565614982,1.93639746,129.17,129.07,22.5731]
[1725565615158,7.7442,129.13,129.08,0.65808647]
[1725565615487,1.93639746,129.17,129.07,41.9418]
[1725565615978,24.66779746,129.17,129.07,22.5731]
[1725565616181,7.7464,129.1,129.05,7.7487]
[1725565616980,7.7465,129.09,129.04,33.2068]
[1725565617362,7.7465,129.09,129.05,0.65999887]
[1725565617561,20.0,129.08,129.04,33.2068]
[1725565617863,1.93678194,129.12,129.04,25.4574]
[1725565618077,21.93637596,129.12,129.06,7.748]
[1725565618263,7.7466,129.09,129.05,0.65915806]
[1725565618474,21.93637596,129.12,129.04,33.2067]
[1725565618777,21.93637596,129.12,129.05,45.65986012]
[1725565619083,7.7461,129.1,129.05,52.7483]
[1725565619253,20.0,129.09,129.05,52.7483]
[1725565619460,7.7483,129.06,129.04,6.0843]
[1725565619656,7.7472,129.08,129.04,6.0843]
[1725565619962,20.0,129.09,129.04,13.8333]
[1725565620170,21.93687412,129.1,129.04,6.0843]
[1725565620375,7.7478,129.07,129.03,19.3746]
[1725565620670,7.7478,129.07,129.03,27.1247]
[1725565620888,1.93700179,129.06,128.99,16.1974]
[1725565621177,1.93700179,129.06,128.98,14.3334]
[1725565621178,1.93700179,129.06,128.98,6.5805]
[1725565621357,1.93700179,129.06,128.99,0.66231512]
[1725565621358,7.7508,129.02,128.99,0.66231512]
[1725565621552,19.3734,129.05,128.95,22.6852]
[1725565621553,27.7514,129.01,128.96,27.1389]
[1725565621979,9.69002124,129.0,128.95,22.6852]
[1725565622156,9.69002124,129.0,128.96,0.66342798]
[1725565622359,9.69002124,129.0,128.95,30.44]
[1725565622555,7.7543,128.96,128.92,6.038]
[1725565622781,1.9386015,128.95,128.89,6.038]
[1725565622992,20.0,128.99,128.9,0.66550953]
[1725565622993,1.93907925,128.98,128.9,0.66550953]
[1725565623360,21.32197925,128.98,128.9,0.66550953]
[1725565623571,20.0,128.97,128.91,0.66520123]
[1725565623783,1.93907925,128.98,128.89,56.038]
[1725565623961,1.93862405,128.99,128.9,0.66441707]
[1725565624287,1.93862405,128.99,128.91,0.66420068]
[1725565624462,7.7532,128.98,128.93,7.7557]
[1725565624661,20.0,128.97,128.93,7.7557]
[1725565625071,20.0,128.97,128.92,19.3918]
[1725565625072,27.7541,128.97,128.92,27.1484]
[1725565625276,7.7549,128.95,128.89,25.434]
[1725565625489,27.7556,128.94,128.89,33.1925]
[1725565625794,1.93901459,128.95,128.89,33.1925]
[1725565625795,20.0,128.93,128.9,7.7578]
[1725565626592,1.34512698,128.96,128.92,7.7564]
[1725565626593,20.0,128.94,128.92,7.7564]
[1725565626761,20.0,128.94,128.91,19.3925]
[1725565626762,1.34512698,128.96,128.91,19.3925]
[1725565627080,9.09952698,128.96,128.92,7.7566]
[1725565627280,20.0,128.95,128.92,7.7566]
[1725565627475,1.34512698,128.96,128.94,7.7555]
[1725565627673,1.34512698,128.96,128.93,27.1457]
[1725565627876,1.34512698,128.96,128.9,19.3942]
[1725565628185,1.34512698,128.96,128.91,45.0]
[1725565628368,1.34512698,128.96,128.9,19.3942]
[1725565628566,1.34512698,128.96,128.91,45.0]
[1725565628763,1.34512698,128.96,128.92,19.3909]
[1725565628967,1.34512698,128.96,128.89,19.396]
[1725565629584,7.7556,128.94,128.89,27.1544]
[1725565629904,1.34512698,128.96,128.91,7.7568]
[1725565629905,11.03910541,128.96,128.91,7.7568]
[1725565630093,20.0,128.95,128.92,0.66506424]
[1725565630388,1.34512698,128.96,128.91,19.3928]
[1725565630590,1.34512698,128.96,128.92,0.66416607]
[1725565630765,1.34512698,128.96,128.92,45.0]
[1725565630959,1.34512698,128.96,128.92,52.7566]
[1725565631201,7.7551,128.95,128.91,19.3928]
[1725565631607,9.09962698,128.96,128.91,27.15]
[1725565631907,20.0,128.95,128.93,19.3898]
[1725565632077,1.34512698,128.96,128.95,7.7549]
[1725565632281,1.34512698,128.96,128.95,52.7549]
[1725565632885,1.34512698,128.96,128.95,7.7549]
[1725565633283,1.34512698,128.96,128.95,52.7549]
[1725565633484,1.34512698,128.96,128.94,7.7553]
[1725565633786,1.34512698,128.96,128.93,19.3898]
[1725565633992,7.755,128.95,128.91,7.7571]
[1725565634190,9.69442108,128.94,128.9,27.1516]
[1725565634388,29.6952576,128.93,128.88,7.7589]
[1725565634588,27.7561,128.93,128.88,7.7589]
[1725565635511,3.28436793,128.96,128.87,22.3729]
[1725565635711,1.34512698,128.96,128.93,7.7557]
[1725565635911,1.34512698,128.96,128.94,0.66405248]
[1725565636208,1.34512698,128.96,128.94,8.41945248]
[1725565636588,1.34512698,128.96,128.95,52.7549]
[1725565637093,1.34512698,128.96,128.95,7.7549]
[1725565637289,1.34512698,128.96,128.9,38.7877]
[1725565637290,9.09982698,128.96,128.9,19.394]
[1725565637690,9.09982698,128.96,128.92,7.7563]
[1725565637890,1.34512698,128.96,128.93,8.42029111]
[1725565638192,1.34512698,128.96,128.93,7.7557]
[1725565638400,23.28388445,128.96,128.93,7.7557]
[1725565638587,21.34512698,128.96,128.93,8.42029439]
[1725565639190,21.34512698,128.96,128.93,7.7557]
[1725565639511,21.34512698,128.96,128.93,7.7559]
[1725565639695,1.34512698,128.96,128.93,8.42049463]
[1725565640016,1.34512698,128.96,128.94,7.7554]
[1725565640215,1.34512698,128.96,128.94,19.3886]
[1725565640596,1.34512698,128.96,128.93,7.756]
[1725565640895,21.34512698,128.96,128.93,7.756]
[1725565642315,21.34512698,128.96,128.94,7.7552]
[1725565642493,1.34512698,128.96,128.95,7.7549]
[1725565642689,1.34512698,128.96,128.95,52.7549]
[1725565644215,9.09952698,128.96,128.93,19.3902]
[1725565644393,1.34512698,128.96,128.93,27.1463]
[1725565644586,1.34512698,128.96,128.95,7.7549]
[1725565645606,1.34512698,128.96,128.95,52.7549]
[1725565646498,1.34512698,128.96,128.95,87.82443445]
[1725565646706,1.93757862,129.05,128.98,19.3821]
[1725565646888,7.7525,128.99,128.95,73.9135]
[1725565647094,7.7525,128.99,128.95,58.8945]
[1725565647510,7.7525,128.99,128.95,78.2806]
[1725565647712,7.7525,128.99,128.95,72.1408]
[1725565649510,1.93833404,129.02,128.96,7.7542]
[1725565649715,7.7515,129.01,128.97,52.7535]
[1725565649889,20.0,129.0,128.95,19.3861]
[1725565650096,20.0,129.0,128.91,53.8055]
[1725565650097,1.93836652,128.99,128.91,22.7758]
[1725565650408,7.7563,128.93,128.89,19.3957]
[1725565650604,20.0,129.0,128.86,6.5273]
[1725565650605,7.7582,128.9,128.86,33.6872]
[1725565650808,7.7582,128.9,128.86,25.9271]
[1725565651111,1.93920416,128.92,128.86,25.9271]
[1725565651112,7.7586,128.89,128.86,19.3998]
[1725565651315,7.7581,128.9,128.86,19.3998]
[1725565652099,7.7575,128.91,128.86,20.06684236]
[1725565652427,1.93920416,128.92,128.83,21.6164]
[1725565652428,7.7586,128.89,128.83,41.0207]
[1725565652618,7.7598,128.87,128.83,25.9316]
[1725565653210,20.0,128.88,128.85,7.7604]
[1725565653426,20.0,128.89,128.83,25.9316]
[1725565653711,9.6992982,128.88,128.84,0.66771503]
[1725565654012,7.7592,128.88,128.83,25.9316]
[1725565654195,29.69992012,128.87,128.83,19.4043]
[1725565654395,9.70064682,128.86,128.8,6.3575]
[1725565654699,20.0,128.85,128.81,7.7627]
[1725565655117,20.0,128.85,128.77,38.8279]
[1725565655118,21.94029516,128.85,128.77,6.3575]
[1725565655294,7.7626,128.83,128.78,7.7649]
[1725565655719,1.94082094,128.87,128.79,7.7643]
[1725565655720,7.7616,128.84,128.79,7.7643]
[1725565655896,21.94070105,128.83,128.78,7.7651]
[1725565656098,7.7644,128.8,128.77,6.3575]
[1725565656305,7.7634,128.81,128.75,7.7664]
[1725565656504,7.7634,128.81,128.73,19.4201]
[1725565656505,29.70544532,128.8,128.74,8.6044896]
[1725565656724,9.70599971,128.79,128.74,8.6044896]
[1725565657516,20.0,128.78,128.74,0.8369896]
[1725565657715,20.0,128.78,128.74,8.6039896]
[1725565658227,20.0,128.78,128.75,7.7669]
[1725565658515,20.0,128.79,128.76,7.7663]
[1725565658722,9.70294484,128.84,128.78,7.7645]
[1725565658893,9.70294484,128.84,128.79,7.7643]
[1725565659724,9.70294484,128.84,128.8,45.0]
[1725565659889,1.94134484,128.84,128.8,45.0]
[1725565660216,1.94134484,128.84,128.79,19.4105]
[1725565660393,7.7622,128.83,128.79,19.4105]
[1725565660600,20.0,128.82,128.79,19.4105]
[1725565660901,20.0,128.82,128.79,27.175]
[1725565661108,9.70214746,128.85,128.8,53.43297324]
[1725565661412,19.7595,128.88,128.8,45.0]
[1725565661413,29.70208801,128.84,128.8,45.0]
[1725565661794,27.7616,128.84,128.8,45.66914333]
[1725565662123,1.94055751,128.83,128.8,45.0]
[1725565662324,9.70295751,128.83,128.79,19.4105]
[1725565662620,9.70312628,128.83,128.79,27.1749]
[1725565663201,1.94077532,128.82,128.79,27.1749]
[1725565663413,20.0,128.84,128.8,8.43366716]
[1725565663713,21.94069974,128.84,128.8,7.7638]
[1725565664115,21.94069974,128.84,128.8,8.4331937]
[1725565664697,20.0,128.84,128.81,7.7633]
[1725565665007,20.0,128.84,128.81,45.0]
[1725565665207,20.0,128.84,128.8,7.7637]
[1725565665706,27.7616,128.84,128.8,7.7637]
[1725565665910,20.0,128.84,128.81,7.7633]
[1725565666225,29.70071543,128.87,128.82,52.7627]
[1725565666414,1.94038356,128.86,128.82,52.7627]
[1725565666597,1.94036356,128.86,128.82,52.7627]
[1725565666798,9.70086356,128.86,128.82,52.7627]
[1725565667020,20.0,128.85,128.82,52.7627]
[1725565667625,20.0,128.85,128.82,53.43116511]
[1725565667824,20.0,128.85,128.82,52.7627]
[1725565668122,20.0,128.86,128.82,53.43113411]
[1725565668417,1.94031074,128.9,128.83,20.07335726]
[1725565668622,1.94031074,128.9,128.87,7.7596]
[1725565668824,7.7573,128.91,128.85,0.66688774]
[1725565668825,1.93987958,128.91,128.85,0.66688774]
[1725565669122,3.376,128.95,128.82,45.0]
[1725565669123,1.93972067,128.94,128.82,45.0]
[1725565669327,19.3908,128.93,128.84,27.1639]
[1725565669525,1.94005074,128.92,128.84,27.1639]
[1725565669695,1.94005074,128.92,128.84,19.4029]
[1725565670099,34.9824,128.89,128.79,6.4613]
[1725565670301,66.94078391,128.88,128.79,14.2258]
[1725565670529,7.7616,128.84,128.79,14.2258]
[1725565670699,19.3998,128.87,128.79,6.4613]
[1725565670700,20.0,128.83,128.79,6.4613]
[1725565670895,1.940645,128.86,128.8,0.66926733]
[1725565671099,20.0,128.86,128.8,0.66926733]
[1725565671340,7.7598,128.87,128.82,27.169]
[1725565671516,7.7598,128.87,128.83,45.66823447]
[1725565671824,20.0,128.86,128.83,45.66823447]
[1725565672025,1.94024531,128.89,128.83,45.66823447]
[1725565672218,1.93985923,128.92,128.83,45.66823447]
[1725565672447,1.93985923,128.92,128.83,45.0]
[1725565672797,7.7589,128.89,128.84,8.42897473]
[1725565673002,7.7589,128.89,128.85,45.0]
[1725565673202,9.10554544,128.89,128.85,45.0]
[1725565673533,20.0,128.88,128.85,45.0]
[1725565673824,1.93996411,128.88,128.84,45.0]
[1725565674220,9.69956411,128.88,128.83,7.7621]
[1725565674416,20.0,128.87,128.83,7.7621]
[1725565674621,20.0,128.87,128.83,8.43019534]
[1725565674826,20.0,128.87,128.83,0.66809534]
[1725565675024,7.7603,128.86,128.82,19.4064]
[1725565675331,3.28681365,128.89,128.83,45.66814254]
[1725565675539,9.10524544,128.89,128.84,7.7614]
[1725565675841,20.0,128.88,128.85,45.0]
[1725565677337,20.0,128.88,128.82,19.4064]
[1725565677507,1.34664544,128.89,128.83,45.0]
[1725565678433,7.7609,128.85,128.8,7.7635]
[1725565678929,1.94017694,128.88,128.79,25.8716]
[1725565679228,7.7617,128.84,128.79,33.6357]
[1725565679723,7.7621,128.83,128.79,33.6361]
[1725565679903,19.3982,128.88,128.76,38.8291]
[1725565679904,9.70364202,128.82,128.76,25.52]
[1725565680103,1.94087297,128.85,128.76,25.52]
[1725565680334,7.7639,128.81,128.76,33.2858]
[1725565680504,7.7653,128.78,128.73,27.1873]
[1725565680704,7.7653,128.78,128.72,6.1044]
[1725565680705,21.94090626,128.8,128.72,6.1044]
[1725565680909,7.7653,128.78,128.72,6.1044]
[1725565681208,21.94152403,128.77,128.72,6.1044]
[1725565681521,27.7658,128.77,128.72,6.1044]
[1725565681709,7.7658,128.77,128.72,6.1044]
[1725565681909,7.7658,128.77,128.72,13.8729]
[1725565682129,1.94163817,128.76,128.72,6.1044]
[1725565682306,39.4105,128.8,128.72,6.1044]
[1725565682307,1.94199029,128.79,128.72,6.1044]
[1725565682520,1.94199029,128.79,128.73,0.67155317]
[1725565682701,1.94199029,128.79,128.72,6.1044]
[1725565682702,7.766,128.77,128.72,6.1044]
[1725565682904,9.70699029,128.79,128.73,8.43920369]
[1725565683143,27.7653,128.78,128.74,1.50788979]
[1725565683311,7.7659,128.77,128.74,0.8369896]
[1725565683506,20.0,128.76,128.74,0.8369896]
[1725565683712,1.94158306,128.82,128.74,1.50829785]
[1725565683916,7.7669,128.75,128.74,0.8369896]
[1725565684114,27.7669,128.75,128.74,0.8369896]
[1725565685544,1.94200239,128.78,128.74,0.8369896]
[1725565685714,7.7653,128.78,128.74,0.8369896]
[1725565686037,1.94146101,128.77,128.74,0.8369896]
[1725565686335,1.94169431,128.79,128.74,0.8369896]
[1725565687454,7.7659,128.77,128.74,0.8369896]
[1725565688537,7.7651,128.79,128.74,9.27623123]
[1725565688840,20.0,128.78,128.75,45.0]
[1725565689038,27.7656,128.78,128.74,0.8369896]
[1725565689216,20.0,128.78,128.74,1.50834683]
[1725565689421,21.94134266,128.8,128.74,46.50834683]
[1725565689623,20.0,128.79,128.74,46.50834683]
[1725565689923,1.94118179,128.81,128.74,65.2552896]
[1725565690117,1.94104096,128.83,128.74,65.2552896]
[1725565690322,1.94119578,128.82,128.74,65.2552896]
[1725565690539,7.7659,128.77,128.74,45.8369896]
[1725565690735,7.7652,128.78,128.74,45.8369896]
[1725565690926,7.7647,128.79,128.74,53.6043896]
[1725565691114,20.0,128.78,128.74,53.6043896]
[1725565691524,27.7652,128.78,128.74,53.6043896]
[1725565692134,20.0,128.78,128.74,53.6043896]
[1725565693256,27.7652,128.78,128.74,45.8369896]
[1725565693459,27.7652,128.78,128.75,0.67120751]
[1725565693666,20.0,128.78,128.75,0.67120751]
[1725565693833,7.7647,128.79,128.75,8.43810751]
[1725565694152,27.7641,128.8,128.76,45.0]
[1725565694325,7.7649,128.79,128.76,45.0]
[1725565694723,7.7653,128.78,128.74,0.8369896]
[1725565694926,7.7664,128.76,128.74,45.8369896]
[1725565695654,7.7664,128.76,128.74,0.8369896]
[1725565696053,1.94161737,128.79,128.74,0.8369896]
[1725565696650,1.34732396,128.78,128.74,1.5084906]
[1725565696849,1.34732396,128.78,128.75,7.7665]
[1725565697061,20.0,128.78,128.76,0.67087]
[1725565697845,20.0,128.78,128.76,45.0]
[1725565698048,20.0,128.78,128.75,45.0]
[1725565698351,27.7653,128.78,128.75,45.0]
[1725565699330,27.7653,128.78,128.75,45.67102301]
[1725565699532,38.8102,128.84,128.75,45.67102301]
[1725565699533,1.94127872,128.83,128.76,0.67078828]
[1725565699758,7.7637,128.81,128.76,7.7659]
[1725565700058,20.0,128.8,128.77,45.0]
[1725565700239,20.0,128.8,128.77,52.7657]
[1725565700441,1.34689147,128.8,128.78,0.66999174]
[1725565700769,9.70120982,128.86,128.79,19.4114]
[1725565700951,19.3963,128.9,128.81,19.408]
[1725565700952,1.94028239,128.87,128.81,19.408]
[1725565701136,1.34656653,128.86,128.82,8.43094352]
[1725565701451,1.34656653,128.86,128.83,45.66819161]
[1725565701834,1.34656653,128.86,128.83,45.0]
[1725565702234,9.10746653,128.86,128.83,45.0]
[1725565702435,9.10746653,128.86,128.82,45.0]
[1725565702859,7.761,128.85,128.82,45.0]
[1725565703158,9.10706653,128.86,128.82,45.0]
[1725565703468,1.34656653,128.86,128.82,52.7627]
[1725565703639,21.34656653,128.86,128.82,52.7627]
[1725565703955,1.34656653,128.86,128.84,7.7614]
[1725565704161,7.759,128.89,128.85,45.66743109]
[1725565704343,1.34615099,128.88,128.85,52.7608]
[1725565704533,1.34615099,128.88,128.86,0.6673164]
[1725565705260,1.34615099,128.88,128.86,7.7603]
[1725565705446,7.7574,128.91,128.86,7.7603]
[1725565705447,7.7574,128.91,128.87,45.0]
[1725565705631,1.34607111,128.9,128.87,45.0]
[1725565705833,1.93953567,128.95,128.88,21.608]
[1725565706032,1.34591146,128.93,128.89,45.0]
[1725565706461,1.34591146,128.93,128.89,52.7584]
[1725565706659,1.34591146,128.93,128.9,7.7578]
[1725565706834,3.28493846,128.93,128.89,45.0]
[1725565707034,7.7572,128.92,128.89,45.0]
[1725565707233,7.7572,128.92,128.88,21.608]
[1725565707451,9.10211146,128.93,128.88,29.3669]
[1725565707653,9.10211146,128.93,128.89,45.0]
[1725565708155,7.7568,128.92,128.88,21.608]
[1725565708359,7.7568,128.92,128.89,45.0]
[1725565708556,7.7579,128.9,128.88,6.4327]
[1725565708865,7.7579,128.9,128.84,34.4991]
[1725565708866,3.28547411,128.93,128.85,6.5171]
[1725565709062,1.93963275,128.92,128.85,6.5171]
[1725565709442,7.7581,128.9,128.85,14.2779]
[1725565709644,20.0,128.89,128.85,14.2779]
[1725565710153,20.0,128.89,128.86,45.0]
[1725565710343,20.0,128.89,128.86,52.7603]
[1725565710545,20.0,128.9,128.86,52.7603]
[1725565710739,27.7579,128.9,128.86,52.7603]
[1725565711872,20.0,128.9,128.86,52.7603]
[1725565712488,27.758,128.9,128.86,52.7603]
[1725565712773,7.7586,128.89,128.86,45.0]
[1725565715469,20.0,128.9,128.87,0.66676804]
[1725565715682,7.7573,128.91,128.87,7.7593]
[1725565715889,7.7573,128.91,128.88,45.0]
[1725565716179,7.7569,128.92,128.88,45.0]
[1725565716561,7.7574,128.91,128.88,45.0]
[1725565717363,7.7569,128.92,128.89,0.66616061]
[1725565717563,20.0,128.91,128.88,52.7589]
[1725565718066,1.34591146,128.93,128.89,0.66598548]
[1725565718262,1.34591146,128.93,128.9,7.7573]
[1725565718576,1.34591146,128.93,128.91,45.0]
[1725565718878,1.34591146,128.93,128.9,45.0]
[1725565719080,9.10211146,128.93,128.9,45.0]
[1725565719260,9.10211146,128.93,128.91,0.66549607]
[1725565719261,1.34591146,128.93,128.91,0.66549607]
[1725565719460,1.34591146,128.93,128.91,45.0]
[1725565719768,1.34591146,128.93,128.89,52.7585]
[1725565719974,29.10221146,128.93,128.89,52.7585]
[1725565720174,29.10221146,128.93,128.9,7.7579]
[1725565720175,21.34591146,128.93,128.9,7.7579]
[1725565720368,21.34591146,128.93,128.91,45.0]
[1725565720757,1.34591146,128.93,128.91,45.0]
[1725565721168,1.34591146,128.93,128.91,53.42225193]
[1725565721379,1.34591146,128.93,128.92,29.8193]
[1725565721686,7.7541,128.97,128.92,74.8193]
[1725565721869,7.7541,128.97,128.93,0.66418019]
[1725565722069,7.7541,128.97,128.93,45.66418019]
[1725565722266,7.7541,128.97,128.93,53.42018019]
[1725565722470,9.09942506,128.97,128.93,45.0]
[1725565722668,9.09942506,128.97,128.94,0.6641896]
[1725565722867,1.34532506,128.97,128.94,0.6641896]
[1725565723172,7.7527,128.99,128.94,0.6641896]
[1725565723371,7.7526,128.99,128.94,27.1437]
[1725565723583,9.09792703,128.99,128.95,45.0]
[1725565723968,9.09792703,128.99,128.96,0.66367986]
[1725565724587,7.7537,128.97,128.93,7.756]
[1725565724768,7.7537,128.97,128.94,45.0]
[1725565725469,7.7544,128.96,128.92,29.8191]
[1725565725667,7.7538,128.97,128.93,45.0]
[1725565725863,7.7538,128.97,128.93,52.756]
[1725565726263,7.7538,128.97,128.94,0.66411996]
[1725565726676,7.7538,128.97,128.93,52.756]
[1725565727591,7.7538,128.97,128.93,45.0]